bitfinex/quotes_BTCUSD_20250922
["timestamp","ask_amount","ask_price","bid_price","bid_amount"]
[1758521976401,1.35638993,113280.0,113270.0,0.003]
[1758521977300,1.35638993,113280.0,113270.0,0.17956925]
[1758521977535,1.35330993,113280.0,113270.0,0.17956925]
[1758521978305,1.35638993,113280.0,113270.0,0.003]
[1758521978713,0.42226,113280.0,113270.0,0.17956925]
[1758521979093,1.35638993,113280.0,113270.0,0.17956925]
[1758521980912,0.42226,113280.0,113270.0,0.17956925]
[1758521981117,0.93609993,113280.0,113270.0,0.18154925]
[1758521981297,0.93412993,113280.0,113270.0,0.27004892]
[1758521981500,1.32564993,113280.0,113270.0,0.27004892]
[1758521981746,0.93412993,113280.0,113270.0,0.27004892]
[1758521982186,0.3914,113280.0,113270.0,0.27004892]
[1758521982377,1.32552993,113280.0,113270.0,0.27004892]
[1758521982593,0.93412993,113280.0,113270.0,0.27004892]
[1758521982747,0.3912,113280.0,113270.0,0.27004892]
[1758521982941,1.32532993,113280.0,113270.0,0.27004892]
[1758521983146,0.3912,113280.0,113270.0,0.27004892]
[1758521983353,1.32532993,113280.0,113270.0,0.27004892]
[1758521984648,0.93412993,113280.0,113270.0,0.27004892]
[1758521984884,1.32504993,113280.0,113270.0,0.27004892]
[1758521985063,1.32504993,113280.0,113270.0,0.27008892]
[1758521985650,0.39092,113280.0,113270.0,0.27008892]
[1758521985831,1.32504993,113280.0,113270.0,0.27008892]
[1758521986333,0.39092,113280.0,113270.0,0.27008892]
[1758521986550,1.32436993,113280.0,113270.0,0.27008892]
[1758521987101,0.09544,113290.0,113280.0,0.17655367]
[1758521987300,1.44862993,113290.0,113280.0,0.17655367]
[1758521987708,1.44862993,113290.0,113270.0,0.08830967]
[1758521987907,0.97062815,113280.0,113270.0,0.26487892]
[1758521988094,0.95797993,113280.0,113270.0,0.26487892]
[1758521988298,0.96302993,113280.0,113270.0,0.26287892]
[1758521988520,0.96302993,113280.0,113270.0,0.26187892]
[1758521988965,0.95994993,113280.0,113270.0,0.26187892]
[1758521989817,1.34954993,113280.0,113270.0,0.26385892]
[1758521990196,0.02385,113280.0,113270.0,0.26585892]
[1758521990420,1.33621815,113280.0,113270.0,0.26908892]
[1758521990626,1.24491074,113280.0,113270.0,0.26908892]
[1758521990783,1.63415074,113280.0,113270.0,0.27008892]
[1758521990987,1.03265874,113280.0,113270.0,0.52492366]
[1758521991206,1.00881882,113280.0,113270.0,0.52492366]
[1758521991412,1.00881882,113280.0,113270.0,0.51895879]
[1758521991413,1.61819419,113280.0,113270.0,0.51895879]
[1758521992042,1.61819419,113280.0,113270.0,0.26308474]
[1758521992043,1.62127419,113280.0,113270.0,0.26308474]
[1758521993433,1.62127419,113280.0,113270.0,0.24405708]
[1758521993854,1.96127419,113280.0,113270.0,0.19650772]
[1758521994075,1.57203419,113280.0,113270.0,0.19650772]
[1758521994288,1.57203419,113280.0,113270.0,0.13306237]
[1758521994289,1.62055419,113280.0,113270.0,0.13306237]
[1758521994924,0.41742,113280.0,113270.0,0.13306237]
[1758521995133,2.00233074,113280.0,113270.0,0.13306237]
[1758521995370,2.00233074,113280.0,113270.0,0.19652538]
[1758521995593,1.66233074,113280.0,113270.0,0.19652538]
[1758521995814,1.83888441,113280.0,113270.0,0.19652538]
[1758521996040,1.48051631,113280.0,113270.0,0.19652538]
[1758521996256,2.49097168,113280.0,113270.0,0.19652538]
[1758521996475,1.86851631,113280.0,113270.0,0.19652538]
[1758521996883,1.86851631,113280.0,113270.0,0.18822413]
[1758521997305,2.20851631,113280.0,113270.0,0.18822413]
[1758521997505,1.61073074,113280.0,113270.0,0.18822413]
[1758521997709,1.99837074,113280.0,113270.0,0.18822413]
[1758521997915,2.00037074,113280.0,113270.0,0.18822413]
[1758521998122,1.66357074,113280.0,113270.0,0.18822413]
[1758521998297,1.27593074,113280.0,113270.0,0.14381074]
[1758521998501,1.66337074,113280.0,113270.0,0.14381074]
[1758521999503,1.66333074,113280.0,113270.0,0.14381074]
[1758521999856,1.27593074,113280.0,113270.0,0.14381074]
[1758522000065,1.66309074,113280.0,113270.0,0.14381074]
[1758522000267,1.27593074,113280.0,113270.0,0.12476112]
[1758522000473,1.66297074,113280.0,113270.0,0.12476112]
[1758522001096,1.83952441,113280.0,113270.0,0.12476112]
[1758522001311,1.86967631,113280.0,113270.0,0.20406774]
[1758522001516,1.95494598,113280.0,113270.0,0.20406774]
[1758522001725,2.91740135,113280.0,113270.0,0.20406774]
[1758522001910,2.29494598,113280.0,113270.0,0.20406774]
[1758522002227,1.90790598,113280.0,113270.0,0.20406774]
[1758522002512,1.56790598,113280.0,113270.0,0.20406774]
[1758522002708,1.64401318,113280.0,113270.0,0.20406774]
[1758522002927,1.25753318,113280.0,113270.0,0.20406774]
[1758522003119,0.70939524,113280.0,113270.0,0.20406774]
[1758522003348,1.64393318,113280.0,113270.0,0.20406774]
[1758522003484,1.71744209,113280.0,113270.0,0.20406774]
[1758522003694,1.25753318,113280.0,113270.0,0.20406774]
[1758522003878,1.64381318,113280.0,113270.0,0.20406774]
[1758522004726,2.1692396,113280.0,113270.0,0.20406774]
[1758522004945,2.1692396,113280.0,113270.0,0.12476112]
[1758522005164,2.5092396,113280.0,113270.0,0.18828896]
[1758522005544,2.59450927,113280.0,113270.0,0.18828995]
[1758522005735,2.5092396,113280.0,113270.0,0.18828995]
[1758522005975,2.5132396,113280.0,113270.0,0.18828995]
[1758522006876,1.05327524,113280.0,113270.0,0.18828995]
[1758522007176,0.12396124,113280.0,113270.0,0.12682112]
[1758522007378,0.84875218,113280.0,113270.0,0.20612774]
[1758522007519,1.97808436,113280.0,113270.0,0.12476112]
[1758522007725,1.59276436,113280.0,113270.0,0.20413625]
[1758522007926,1.97800436,113280.0,113270.0,0.20413625]
[1758522008135,2.15455803,113280.0,113270.0,0.20413625]
[1758522008363,2.2611396,113280.0,113270.0,0.20413625]
[1758522008538,2.2767847,113280.0,113270.0,0.20413625]
[1758522008880,2.6257847,113280.0,113270.0,0.20413625]
[1758522009105,0.76497524,113280.0,113270.0,0.20413625]
[1758522009308,2.6059796,113280.0,113270.0,0.12476112]
[1758522009511,2.2209396,113280.0,113270.0,0.12476112]
[1758522009709,2.6086996,113280.0,113270.0,0.12476112]
[1758522009950,2.6036996,113280.0,113270.0,0.12476112]
[1758522010155,2.68896927,113280.0,113270.0,0.12476112]
[1758522010384,2.69496927,113280.0,113270.0,0.12476112]
[1758522010813,2.31020927,113280.0,113270.0,0.12476112]
[1758522010992,2.6093796,113280.0,113270.0,0.12476112]
[1758522011245,2.6133796,113280.0,113270.0,0.12476112]
[1758522011455,2.6133796,113280.0,113270.0,0.18825836]
[1758522012006,2.14046993,113280.0,113270.0,0.19038836]
[1758522012210,2.52287993,113280.0,113270.0,0.19038836]
[1758522012422,1.80046993,113280.0,113270.0,0.19038836]
[1758522012635,2.18466993,113280.0,113270.0,0.19038836]
[1758522013042,2.52066993,113280.0,113270.0,0.18825836]
[1758522013247,2.12746993,113280.0,113270.0,0.18825836]
[1758522013458,2.51358993,113280.0,113270.0,0.18825836]
[1758522013662,2.51958993,113280.0,113270.0,0.18825836]
[1758522013876,2.13866993,113280.0,113270.0,0.18825836]
[1758522014072,2.6078996,113280.0,113270.0,0.18825836]
[1758522014480,2.2239396,113280.0,113270.0,0.18825836]
[1758522014685,2.29900275,113280.0,113270.0,0.18825836]
[1758522014892,2.6076196,113280.0,113270.0,0.18825836]
[1758522015305,2.2239396,113280.0,113270.0,0.18825836]
[1758522015517,2.6075796,113280.0,113270.0,0.18825836]
[1758522016108,0.76397524,113280.0,113270.0,0.18825836]
[1758522016312,2.2239396,113280.0,113270.0,0.18825836]
[1758522016512,2.2207396,113280.0,113270.0,0.18825836]
[1758522016775,2.63056891,113280.0,113270.0,0.18825836]
[1758522016982,2.63376891,113280.0,113270.0,0.18825836]
[1758522017859,2.63344891,113280.0,113270.0,0.18825836]
[1758522018358,1.14369524,113280.0,113270.0,0.19038836]
[1758522018551,2.2207396,113280.0,113270.0,0.19038836]
[1758522018772,2.6034996,113280.0,113270.0,0.19038836]
[1758522019831,2.2207396,113280.0,113270.0,0.19038836]
[1758522020039,1.93558626,113280.0,113270.0,0.19038836]
[1758522020234,0.83342218,113280.0,113270.0,0.19332836]
[1758522020430,0.83342218,113280.0,113270.0,0.1933353]
[1758522020431,1.24597408,113280.0,113270.0,0.1933353]
[1758522020638,0.83342218,113280.0,113270.0,0.12983112]
[1758522020877,0.73798218,113280.0,113270.0,0.12983112]
[1758522021034,0.73798218,113280.0,113270.0,0.22839691]
[1758522021035,0.38224,113280.0,113270.0,0.22839691]
[1758522021238,1.11222218,113280.0,113270.0,0.14902178]
[1758522021444,0.72998218,113280.0,113270.0,0.14902178]
[1758522021650,0.72998218,113280.0,113270.0,0.22839691]
[1758522021908,1.20750218,113280.0,113270.0,0.22839691]
[1758522022095,0.47752,113280.0,113270.0,0.22839691]
[1758522022300,0.73098218,113280.0,113270.0,0.22839691]
[1758522022509,1.20842218,113280.0,113270.0,0.22839691]
[1758522022736,1.93840436,113280.0,113270.0,0.22825691]
[1758522022872,1.93943436,113280.0,113270.0,0.22531691]
[1758522023235,1.55544436,113280.0,113270.0,0.22531691]
[1758522023441,1.93736436,113280.0,113270.0,0.22531691]
[1758522023649,2.14150803,113280.0,113270.0,0.22531691]
[1758522023865,1.96463436,113280.0,113270.0,0.14594178]
[1758522024066,2.17133993,113280.0,113270.0,0.14594178]
[1758522024269,2.17133993,113280.0,113270.0,0.14381178]
[1758522024671,1.78973993,113280.0,113270.0,0.14381178]
[1758522024869,2.17117993,113280.0,113270.0,0.14381178]
[1758522025090,2.17117993,113280.0,113270.0,0.22531691]
[1758522025699,1.61318626,113280.0,113270.0,0.22531691]
[1758522025903,1.99458626,113280.0,113270.0,0.22531691]
[1758522026100,0.82646218,113280.0,113270.0,0.22825691]
[1758522026309,1.20754218,113280.0,113270.0,0.22825691]
[1758522026471,0.82646218,113280.0,113270.0,0.22825691]
[1758522026683,1.87825748,113280.0,113270.0,0.22825691]
[1758522026884,1.87821748,113280.0,113270.0,0.22825691]
[1758522027308,1.87813748,113280.0,113270.0,0.22825691]
[1758522027504,1.40181748,113280.0,113270.0,0.22825691]
[1758522027719,1.78253748,113280.0,113270.0,0.22839691]
[1758522027913,1.78253748,113280.0,113270.0,0.22825691]
[1758522028652,1.78253748,113280.0,113270.0,0.22531691]
[1758522028864,1.78253748,113280.0,113270.0,0.22844691]
[1758522029090,1.40181748,113280.0,113270.0,0.22844691]
[1758522030090,1.40395748,113280.0,113270.0,0.22531691]
[1758522030297,1.90270748,113280.0,113270.0,0.22531691]
[1758522030494,2.07926115,113280.0,113270.0,0.22531691]
[1758522030701,1.9612186,113280.0,113270.0,0.22531691]
[1758522031141,1.89060712,113280.0,113270.0,0.22531691]
[1758522031964,1.15995282,113280.0,113270.0,0.22531691]
[1758522033254,1.16094282,113280.0,113270.0,0.22531691]
[1758522033668,1.16094282,113280.0,113270.0,0.22318691]
[1758522033879,2.09659269,113280.0,113270.0,0.22318691]
[1758522034082,2.09880269,113280.0,113270.0,0.22318691]
[1758522034446,2.09880269,113280.0,113270.0,0.14381178]
[1758522035022,2.09880269,113280.0,113270.0,0.20735061]
[1758522035427,2.09880269,113280.0,113270.0,0.14381178]
[1758522035637,2.09880269,113280.0,113270.0,0.18830055]
[1758522036062,1.71936269,113280.0,113270.0,0.18830055]
[1758522036304,0.63702409,113280.0,113270.0,0.19031055]
[1758522036512,1.36668839,113280.0,113270.0,0.19031055]
[1758522036883,1.71715269,113280.0,113270.0,0.19031055]
[1758522037114,2.07165269,113280.0,113270.0,0.19344055]
[1758522037318,2.09678269,113280.0,113270.0,0.19031055]
[1758522037735,0.63745409,113280.0,113270.0,0.19031055]
[1758522037926,2.09678269,113280.0,113270.0,0.19031055]
[1758522038098,2.09678269,113280.0,113270.0,0.18830055]
[1758522039304,2.09898269,113280.0,113270.0,0.18830055]
[1758522039549,2.18425236,113280.0,113270.0,0.18830055]
[1758522040320,1.80561236,113280.0,113270.0,0.18830055]
[1758522040516,2.18365236,113280.0,113270.0,0.18830055]
[1758522040849,1.80561236,113280.0,113270.0,0.18830055]
[1758522041058,2.18341236,113280.0,113270.0,0.12476112]
[1758522041590,0.72408376,113280.0,113270.0,0.12476112]
[1758522041764,2.18341236,113280.0,113270.0,0.12476112]
[1758522042561,1.80561236,113280.0,113270.0,0.12476112]
[1758522042791,1.80341236,113280.0,113270.0,0.12476112]
[1758522042969,1.45114806,113280.0,113270.0,0.12677112]
[1758522043171,1.45110806,113280.0,113270.0,0.12677112]
[1758522043376,2.18077236,113280.0,113270.0,0.20614625]
[1758522045178,2.18073236,113280.0,113270.0,0.20614625]
[1758522045865,1.80341236,113280.0,113270.0,0.20614625]
[1758522046084,2.18033236,113280.0,113270.0,0.20614625]
[1758522046298,2.18033236,113280.0,113270.0,0.20413625]
[1758522047906,2.18253236,113280.0,113270.0,0.12476112]
[1758522048399,2.20908086,113280.0,113270.0,0.12476112]
[1758522048816,2.20908086,113280.0,113270.0,0.18834065]
[1758522048817,2.54908086,113280.0,113270.0,0.18834065]
[1758522049650,1.08975226,113280.0,113270.0,0.18834065]
[1758522049909,2.63435053,113280.0,113270.0,0.18834065]
[1758522050325,2.63735053,113280.0,113270.0,0.18834065]
[1758522050527,2.64335053,113280.0,113270.0,0.18834065]
[1758522051126,2.68170011,113280.0,113270.0,0.20740694]
[1758522051356,2.30478011,113280.0,113270.0,0.20740694]
[1758522051571,2.68038011,113280.0,113270.0,0.20740694]
[1758522051954,1.22085151,113280.0,113270.0,0.20740694]
[1758522052184,2.59491044,113280.0,113270.0,0.20740694]
[1758522052401,2.21951044,113280.0,113270.0,0.20740694]
[1758522052614,3.23790259,113280.0,113270.0,0.20740694]
[1758522052910,2.86246259,113280.0,113270.0,0.20740694]
[1758522053106,3.35320416,113280.0,113270.0,0.20740694]
[1758522053933,3.35288416,113280.0,113270.0,0.20740694]
[1758522056093,2.97788416,113280.0,113270.0,0.20740694]
[1758522056542,3.35244416,113280.0,113270.0,0.20740694]
[1758522056952,2.97788416,113280.0,113270.0,0.20740694]
[1758522057163,3.35240416,113280.0,113270.0,0.20740694]
[1758522057337,3.35240416,113280.0,113270.0,0.20640944]
[1758522057497,2.97788416,113280.0,113270.0,0.20640944]
[1758522057700,2.97568416,113280.0,113270.0,0.20640944]
[1758522057940,3.34992416,113280.0,113270.0,0.20640944]
[1758522058125,3.34988416,113280.0,113270.0,0.20640944]
[1758522058322,3.35208416,113280.0,113270.0,0.20640944]
[1758522058528,2.97788416,113280.0,113270.0,0.20640944]
[1758522058731,3.35188416,113280.0,113270.0,0.20640944]
[1758522059300,2.97788416,113280.0,113270.0,0.20640944]
[1758522059499,3.34968416,113280.0,113270.0,0.20640944]
[1758522060141,3.16751051,113280.0,113270.0,0.21150944]
[1758522060342,2.81744051,113280.0,113270.0,0.21150944]
[1758522060520,3.19310051,113280.0,113270.0,0.20840944]
[1758522061352,2.79367051,113280.0,113270.0,0.21150944]
[1758522061499,2.79367051,113280.0,113270.0,0.20640944]
[1758522061500,3.19286051,113280.0,113270.0,0.20640944]
[1758522061718,3.28033018,113280.0,113270.0,0.20640944]
[1758522061919,0.17658484,113260.0,113250.0,4e-05]
[1758522062175,2.81764716,113260.0,113250.0,4e-05]
[1758522062386,0.51661603,113240.0,113230.0,4e-05]
[1758522062600,3.67022802,113240.0,113230.0,4e-05]
[1758522062779,2.61891238,113230.0,113220.0,0.25370221]
[1758522062987,2.72795205,113230.0,113220.0,0.25370221]
[1758522063193,3.10306205,113230.0,113220.0,0.25370221]
[1758522063339,3.10526205,113230.0,113220.0,0.25370221]
[1758522063546,0.20681473,113210.0,113200.0,4e-05]
[1758522063763,2.0665649,113210.0,113200.0,0.00050894]
[1758522063964,2.4303349,113210.0,113200.0,0.00250894]
[1758522064169,2.4323249,113210.0,113200.0,0.00250894]
[1758522064378,2.4322449,113210.0,113200.0,0.00250894]
[1758522064553,2.4322449,113210.0,113200.0,0.00050894]
[1758522064554,2.27766406,113210.0,113200.0,0.00050894]
[1758522064830,2.36293371,113210.0,113200.0,0.00350894]
[1758522064984,1.91554424,113210.0,113200.0,0.00350894]
[1758522065185,2.28822424,113210.0,113200.0,0.00350894]
[1758522065382,2.28602424,113210.0,113200.0,0.00350894]
[1758522065591,2.28822424,113210.0,113200.0,0.00350894]
[1758522065795,2.37337391,113210.0,113200.0,0.05108765]
[1758522066220,1.12642425,113210.0,113200.0,0.05108765]
[1758522066418,1.12410425,113210.0,113200.0,0.05108765]
[1758522066625,1.60197356,113210.0,113200.0,0.05108765]
[1758522066869,1.97437356,113210.0,113200.0,0.05108765]
[1758522067084,1.97657356,113210.0,113200.0,0.05208765]
[1758522068011,1.97657356,113210.0,113200.0,0.02827842]
[1758522068151,2.06184323,113210.0,113200.0,0.00450894]
[1758522068853,2.11184323,113210.0,113200.0,0.00450894]
[1758522069475,1.53240932,113200.0,113190.0,0.31712776]
[1758522069673,2.1110158,113200.0,113190.0,0.31712776]
[1758522069870,2.1129958,113200.0,113190.0,0.31712776]
[1758522070081,2.19826545,113200.0,113190.0,0.31712776]
[1758522070332,2.2248388,113200.0,113190.0,0.31712776]
[1758522070547,3.16041778,113200.0,113190.0,0.31712776]
[1758522070741,1.20375017,113200.0,113190.0,0.31712776]
[1758522070948,1.76772915,113200.0,113190.0,0.31712776]
[1758522071076,2.14632915,113200.0,113190.0,0.31712776]
[1758522071484,1.77472915,113200.0,113190.0,0.31712776]
[1758522071685,2.14616915,113200.0,113190.0,0.31712776]
[1758522071887,1.77472915,113200.0,113190.0,0.31712776]
[1758522072089,2.14608915,113200.0,113190.0,0.31712776]
[1758522072940,0.59686156,113180.0,113170.0,0.09986884]
[1758522073249,0.64689279,113160.0,113150.0,0.00024]
[1758522073426,2.24988076,113160.0,113150.0,0.00024]
[1758522073621,2.27587076,113160.0,113150.0,0.00024]
[1758522074018,2.27587076,113160.0,113150.0,1e-08]
[1758522074480,2.24451454,113160.0,113150.0,8.277e-05]
[1758522074680,2.28410117,113160.0,113150.0,8.277e-05]
[1758522075262,0.64690841,113150.0,113140.0,0.0228243]
[1758522075458,2.12378673,113150.0,113140.0,1e-08]
[1758522075739,2.15176673,113150.0,113140.0,1e-08]
[1758522076473,0.64692404,113140.0,113130.0,1e-08]
[1758522076677,2.03837269,113140.0,113130.0,1e-08]
[1758522076891,1.13077371,113140.0,113130.0,1e-08]
[1758522077097,1.21588338,113140.0,113130.0,1e-08]
[1758522077958,1.21788338,113140.0,113130.0,1e-08]
[1758522078202,1.88253427,113120.0,113110.0,0.08984512]
[1758522078458,2.84386394,113120.0,113110.0,0.09031916]
[1758522078712,2.92913361,113120.0,113110.0,0.09031916]
[1758522078950,2.95573075,113120.0,113110.0,0.09031916]
[1758522079415,2.14816108,113120.0,113110.0,0.09031916]
[1758522079641,2.56836108,113120.0,113110.0,0.09231916]
[1758522080137,2.51808108,113120.0,113110.0,0.09231916]
[1758522080348,2.19816108,113120.0,113110.0,0.09231916]
[1758522080565,2.51800108,113120.0,113110.0,0.10031916]
[1758522080790,2.19816108,113120.0,113110.0,0.10031916]
[1758522081007,1.15515102,113120.0,113110.0,0.10542916]
[1758522081259,2.14073,113120.0,113110.0,0.12825916]
[1758522081470,2.04208918,113120.0,113110.0,0.10542916]
[1758522081672,2.20312885,113120.0,113110.0,0.10031916]
[1758522081881,2.67391528,113120.0,113110.0,0.10031916]
[1758522082084,2.67387528,113120.0,113110.0,0.10031916]
[1758522082330,2.67391528,113120.0,113110.0,0.10031916]
[1758522082756,2.67379528,113120.0,113110.0,0.10031916]
[1758522082973,2.68227376,113120.0,113110.0,0.10031916]
[1758522084047,2.68007376,113120.0,113110.0,0.10031916]
[1758522084249,2.68003376,113120.0,113110.0,0.10031916]
[1758522084469,2.67979376,113120.0,113110.0,0.10031916]
[1758522084885,2.68191376,113120.0,113110.0,0.10031916]
[1758522086114,0.64697092,113110.0,113100.0,4e-05]
[1758522086356,2.52375572,113110.0,113100.0,4e-05]
[1758522086544,2.55172572,113110.0,113100.0,4e-05]
[1758522086992,2.54936572,113110.0,113100.0,4e-05]
[1758522087199,0.20700219,113090.0,113080.0,0.58349715]
[1758522087410,1.67217084,113090.0,113080.0,0.55663715]
[1758522087688,1.70312051,113090.0,113080.0,0.56179715]
[1758522087895,2.03185585,113090.0,113080.0,0.58570715]
[1758522088111,1.98185585,113090.0,113080.0,0.58570715]
[1758522088339,1.98185585,113090.0,113080.0,0.59170715]
[1758522088340,1.98285585,113090.0,113080.0,0.59170715]
[1758522088752,1.04827687,113090.0,113080.0,0.58579715]
[1758522088969,2.14472552,113090.0,113080.0,0.58267715]
[1758522089168,2.14472552,113090.0,113080.0,0.58063715]
[1758522089392,2.14692552,113090.0,113080.0,0.58063715]
[1758522090304,2.19692552,113090.0,113080.0,0.58063715]
[1758522091183,2.19492552,113090.0,113080.0,0.55663715]
[1758522091424,2.19592552,113090.0,113080.0,0.56063715]
[1758522091617,2.19592552,113090.0,113080.0,0.55663715]
[1758522092105,1.83036552,113090.0,113080.0,0.55663715]
[1758522092340,2.12266552,113090.0,113080.0,0.55867715]
[1758522092632,2.19584552,113090.0,113080.0,0.55867715]
[1758522092818,2.19804552,113090.0,113080.0,0.55663715]
[1758522093248,2.19504552,113090.0,113080.0,0.55663715]
[1758522093654,2.19404552,113090.0,113080.0,0.55863715]
[1758522093863,2.19404552,113090.0,113080.0,0.55663715]
[1758522094073,1.99848552,113090.0,113080.0,0.10795031]
[1758522094297,0.64701783,113080.0,113070.0,0.0002]
[1758522094503,2.2349424,113080.0,113070.0,0.0002]
[1758522094710,1.5326281,113060.0,113050.0,0.47885165]
[1758522094916,2.38658402,113060.0,113050.0,0.48089165]
[1758522095537,2.04591034,113060.0,113050.0,0.48089165]
[1758522095926,2.41303034,113060.0,113050.0,0.48103247]
[1758522096132,2.49830001,113060.0,113050.0,0.48103247]
[1758522096479,2.4984047,113060.0,113050.0,0.48103247]
[1758522096683,1.99601503,113060.0,113050.0,0.48103247]
[1758522096887,1.03028415,113060.0,113050.0,0.50494247]
[1758522097076,2.33374313,113060.0,113050.0,0.50994247]
[1758522097278,1.96686313,113060.0,113050.0,0.50994247]
[1758522097478,1.03128415,113060.0,113050.0,0.50994247]
[1758522097883,1.42815605,113060.0,113050.0,0.51994247]
[1758522098082,1.42815605,113060.0,113050.0,0.49087247]
[1758522098083,2.44442666,113060.0,113050.0,0.49087247]
[1758522098297,2.52021666,113060.0,113050.0,0.49087247]
[1758522098748,2.15349666,113060.0,113050.0,0.49087247]
[1758522098962,2.51796666,113060.0,113050.0,0.49083247]
[1758522099158,1.99701503,113060.0,113050.0,0.49599247]
[1758522099359,1.42791605,113060.0,113050.0,0.50990247]
[1758522099564,1.99701503,113060.0,113050.0,0.50990247]
[1758522099989,2.36837503,113060.0,113050.0,0.50490247]
[1758522100197,2.36537503,113060.0,113050.0,0.50490247]
[1758522100409,1.51506572,113060.0,113050.0,0.50490247]
[1758522100559,2.4506447,113060.0,113050.0,0.50590247]
[1758522100772,2.4476447,113060.0,113050.0,0.50590247]
[1758522100957,2.4476447,113060.0,113050.0,0.50690247]
[1758522101339,2.0812847,113060.0,113050.0,0.50690247]
[1758522101594,2.4423247,113060.0,113050.0,0.50690247]
[1758522102089,2.8249647,113060.0,113050.0,0.50690247]
[1758522102306,2.8248447,113060.0,113050.0,0.50690247]
[1758522102511,2.8148447,113060.0,113050.0,0.50690247]
[1758522102751,2.8148447,113060.0,113050.0,0.48299247]
[1758522102958,1.87926572,113060.0,113050.0,0.48299247]
[1758522103166,2.8148447,113060.0,113050.0,0.48299247]
[1758522104632,2.89426899,113060.0,113050.0,0.48299247]
[1758522104834,2.89426899,113060.0,113050.0,0.47987247]
[1758522105027,2.89426899,113060.0,113050.0,0.48299247]
[1758522105263,1.59277001,113060.0,113050.0,0.48299247]
[1758522105449,0.89018155,113060.0,113050.0,0.50690247]
[1758522105654,1.30538214,113060.0,113050.0,0.50690247]
[1758522106547,1.30526214,113060.0,113050.0,0.50590247]
[1758522106911,1.30626214,113060.0,113050.0,0.50990247]
[1758522107124,1.30614214,113060.0,113050.0,0.52090247]
[1758522107316,0.55738214,113060.0,113050.0,0.76708501]
[1758522107518,0.85894094,113060.0,113050.0,0.76708501]
[1758522107746,0.86086094,113060.0,113050.0,0.79408501]
[1758522108691,0.92434214,113060.0,113050.0,0.61717214]
[1758522109318,0.92434214,113060.0,113050.0,0.53190247]
[1758522109732,0.92398214,113060.0,113050.0,0.53190247]
[1758522110317,0.55938214,113060.0,113050.0,0.70881534]
[1758522110703,0.92374214,113060.0,113050.0,0.79408501]
[1758522111076,0.86026094,113060.0,113050.0,0.79408501]
[1758522111225,0.86018094,113060.0,113050.0,0.79408501]
[1758522111422,2.48836705,113060.0,113050.0,0.50283247]
[1758522111790,2.51518895,113060.0,113050.0,0.50283247]
[1758522111920,2.49156895,113060.0,113050.0,0.50283247]
[1758522112130,2.49156895,113060.0,113050.0,0.50487247]
[1758522112333,2.49056895,113060.0,113050.0,0.49687247]
[1758522112529,2.56899324,113060.0,113050.0,0.47787247]
[1758522112730,2.59586324,113060.0,113050.0,0.47783247]
[1758522112950,2.59586324,113060.0,113050.0,0.48083247]
[1758522113155,2.59261324,113060.0,113050.0,0.48083247]
[1758522113356,2.59229324,113060.0,113050.0,0.48083247]
[1758522113753,1.65671426,113060.0,113050.0,0.47883247]
[1758522114003,2.59229324,113060.0,113050.0,0.47883247]
[1758522114338,2.59554324,113060.0,113050.0,0.47883247]
[1758522114546,1.53264375,113050.0,113040.0,0.0002]
[1758522114772,0.51694417,113030.0,113020.0,0.0002]
[1758522114977,2.30507376,113030.0,113020.0,0.0002]
[1758522115185,2.39551771,113030.0,113020.0,0.0002]
[1758522115396,2.43418978,113030.0,113020.0,0.0002]
[1758522115615,2.48773797,113030.0,113020.0,0.0002]
[1758522115826,2.57300764,113030.0,113020.0,0.0002]
[1758522116040,0.64711173,113020.0,113010.0,1e-08]
[1758522116249,1.78255132,113020.0,113010.0,1e-08]
[1758522116473,1.83559561,113020.0,113010.0,1e-08]
[1758522116709,2.20096561,113020.0,113010.0,1e-08]
[1758522116916,2.13730949,113020.0,113010.0,1e-08]
[1758522117128,2.08730949,113020.0,113010.0,1e-08]
[1758522117337,1.72702949,113020.0,113010.0,1e-08]
[1758522117535,1.68255132,113020.0,113010.0,0.00198001]
[1758522117744,2.12344132,113020.0,113010.0,1e-08]
[1758522117995,2.17344132,113020.0,113010.0,1e-08]
[1758522118165,2.31904609,113020.0,113010.0,1e-08]
[1758522118373,1.45258579,112990.0,112980.0,0.00656791]
[1758522118519,2.3025664,112990.0,112980.0,0.00656791]
[1758522118921,2.3271764,112990.0,112980.0,0.00656791]
[1758522119122,2.39376204,112990.0,112980.0,0.00656791]
[1758522119362,2.02764204,112990.0,112980.0,0.00656791]
[1758522119565,2.45328169,112990.0,112980.0,0.00670873]
[1758522119918,2.45328169,112990.0,112980.0,0.01270873]
[1758522120119,2.45428169,112990.0,112980.0,0.01270873]
[1758522120343,2.47679169,112990.0,112980.0,0.00670873]
[1758522120546,0.59717438,112980.0,112970.0,0.0002]
[1758522120744,2.18364364,112980.0,112970.0,0.00034187]
[1758522121006,2.20825364,112980.0,112970.0,0.00034187]
[1758522121142,2.27175928,112980.0,112970.0,0.00034187]
[1758522121339,0.81058063,112980.0,112970.0,0.00539187]
[1758522121549,0.81058063,112980.0,112960.0,0.02319]
[1758522121550,0.17703815,112970.0,112960.0,0.02319]
[1758522121786,1.13170827,112970.0,112960.0,0.02517]
[1758522122146,1.49418827,112970.0,112960.0,0.02517]
[1758522122355,0.55860929,112970.0,112960.0,0.02517]
[1758522122561,1.61170984,112970.0,112960.0,0.0002]
[1758522122685,1.63421984,112970.0,112960.0,0.0002]
[1758522122897,1.70080548,112970.0,112960.0,0.0002]
[1758522123095,2.04080548,112970.0,112960.0,1e-08]
[1758522123298,2.17456422,112970.0,112960.0,1e-08]
[1758522123505,1.26611313,112940.0,112930.0,0.02983008]
[1758522123711,1.26611313,112940.0,112930.0,0.00684008]
[1758522123712,2.12574407,112940.0,112930.0,0.00684008]
[1758522123916,2.15589597,112940.0,112930.0,0.00882008]
[1758522124144,2.24116564,112940.0,112930.0,0.00882008]
[1758522124853,2.32853531,112940.0,112930.0,0.00684008]
[1758522125063,2.33161531,112940.0,112930.0,0.00684008]
[1758522125263,2.32833531,112940.0,112930.0,0.00684008]
[1758522125448,2.24306564,112940.0,112930.0,0.00684008]
[1758522125633,2.26865564,112940.0,112930.0,0.00684008]
[1758522126210,2.27065564,112940.0,112930.0,0.02084008]
[1758522126420,2.35492531,112940.0,112930.0,0.01184008]
[1758522126614,1.60489735,112940.0,112930.0,0.00684008]
[1758522126819,1.51622768,112940.0,112930.0,0.00684008]
[1758522127028,2.25148219,112940.0,112930.0,0.01584008]
[1758522127382,2.25248219,112940.0,112930.0,0.01584008]
[1758522127504,2.25456219,112940.0,112930.0,0.01084008]
[1758522127700,1.89292219,112940.0,112930.0,0.01084008]
[1758522128010,0.00885582,112920.0,112880.0,0.16857038]
[1758522128214,0.0788764,112900.0,112890.0,0.2712912]
[1758522128414,0.09782734,112900.0,112890.0,0.2712912]
[1758522128691,0.0820418,112900.0,112890.0,0.2712912]
[1758522129152,0.01895094,112900.0,112890.0,0.23226688]
[1758522129360,0.01909101,112900.0,112890.0,0.23226688]
[1758522129568,0.01909101,112900.0,112890.0,0.31241878]
[1758522129788,0.01909101,112900.0,112890.0,0.65241878]
[1758522130187,0.02009101,112900.0,112890.0,0.66156878]
[1758522130598,0.01909101,112900.0,112890.0,0.72159033]